[Event "Early-Titled-Tuesday-Blitz-April-16-2024"]
[Site "Chess.com"]
[Date "2024.04.16"]
[Round "9"]
[White "ural58"]
[Black "karinachess1"]
[Result "1-0"]
[WhiteElo "2495"]
[BlackElo "2607"]
[TimeControl "180+1"]
[EndTime "9:50:00 PDT"]
[Termination "ural58 won by checkmate"]

1. e4 {[%clk 0:03:00.9]} 1... e5 {[%clk 0:02:59.7]} 2. Nf3 {[%clk 0:03:00]} 2...
Nc6 {[%clk 0:02:59.9]} 3. Bc4 {[%clk 0:02:59.8]} 3... Nf6 {[%clk 0:02:56.3]} 4.
Ng5 {[%clk 0:02:59.4]} 4... d5 {[%clk 0:02:51.7]} 5. exd5 {[%clk 0:02:59.3]}
5... Na5 {[%clk 0:02:51.8]} 6. Bb5+ {[%clk 0:02:59]} 6... c6 {[%clk 0:02:52.3]}
7. dxc6 {[%clk 0:02:58.9]} 7... bxc6 {[%clk 0:02:53.2]} 8. Bd3 {[%clk
0:02:58.4]} 8... Be7 {[%clk 0:02:51.4]} 9. Qf3 {[%clk 0:02:50.9]} 9... O-O
{[%clk 0:02:37.4]} 10. Bf5 {[%clk 0:02:43.6]} 10... h6 {[%clk 0:02:14.7]} 11.
Ne4 {[%clk 0:02:33.1]} 11... Nxe4 {[%clk 0:02:01.8]} 12. Qxe4 {[%clk 0:02:31.3]}
12... Nb7 {[%clk 0:01:59.9]} 13. Bxc8 {[%clk 0:02:30]} 13... Rxc8 {[%clk
0:02:00.8]} 14. O-O {[%clk 0:02:25.8]} 14... Bd6 {[%clk 0:01:57.8]} 15. d3
{[%clk 0:02:20.9]} 15... Nc5 {[%clk 0:01:42.3]} 16. Qc4 {[%clk 0:02:19.6]} 16...
Ne6 {[%clk 0:01:40]} 17. Be3 {[%clk 0:02:16.1]} 17... Qd7 {[%clk 0:01:39.7]} 18.
b4 {[%clk 0:02:02.6]} 18... Rb8 {[%clk 0:01:28.8]} 19. c3 {[%clk 0:01:58.1]}
19... f5 {[%clk 0:01:16]} 20. Nd2 {[%clk 0:01:56.9]} 20... Kh8 {[%clk
0:01:13.9]} 21. f3 {[%clk 0:01:55]} 21... Rfc8 {[%clk 0:00:56.2]} 22. Nb3 {[%clk
0:01:54.1]} 22... Nc7 {[%clk 0:00:47.9]} 23. Qh4 {[%clk 0:01:48.7]} 23... Bf8
{[%clk 0:00:40.3]} 24. Rad1 {[%clk 0:01:47]} 24... Nd5 {[%clk 0:00:40.1]} 25.
Bd2 {[%clk 0:01:35.5]} 25... Re8 {[%clk 0:00:31.9]} 26. Rfe1 {[%clk 0:01:33.7]}
26... Rbd8 {[%clk 0:00:30.6]} 27. a3 {[%clk 0:01:26.8]} 27... a6 {[%clk
0:00:30.3]} 28. c4 {[%clk 0:01:23.9]} 28... Nc7 {[%clk 0:00:19.3]} 29. Be3
{[%clk 0:01:22.4]} 29... Qf7 {[%clk 0:00:18.8]} 30. Bc5 {[%clk 0:01:19.8]} 30...
Bxc5+ {[%clk 0:00:14]} 31. Nxc5 {[%clk 0:01:19.7]} 31... Re7 {[%clk 0:00:14.4]}
32. d4 {[%clk 0:01:12.3]} 32... Rde8 {[%clk 0:00:12.7]} 33. dxe5 {[%clk
0:01:03.4]} 33... Rxe5 {[%clk 0:00:13.1]} 34. Rxe5 {[%clk 0:01:02.9]} 34... Rxe5
{[%clk 0:00:14]} 35. Qd8+ {[%clk 0:00:56.1]} 35... Kh7 {[%clk 0:00:13.7]} 36.
Qd4 {[%clk 0:00:56.6]} 36... Qe8 {[%clk 0:00:12.4]} 37. h3 {[%clk 0:00:53]}
37... Re1+ {[%clk 0:00:12.6]} 38. Rxe1 {[%clk 0:00:51.8]} 38... Qxe1+ {[%clk
0:00:13.5]} 39. Kh2 {[%clk 0:00:52.1]} 39... Ne6 {[%clk 0:00:13.7]} 40. Nxe6
{[%clk 0:00:50.3]} 40... Qxe6 {[%clk 0:00:13.4]} 41. f4 {[%clk 0:00:48.8]} 41...
Qe2 {[%clk 0:00:10.3]} 42. Qe5 {[%clk 0:00:32.8]} 42... Qxc4 {[%clk 0:00:09.1]}
43. Qxf5+ {[%clk 0:00:32.9]} 43... Kh8 {[%clk 0:00:07.9]} 44. Qe5 {[%clk
0:00:27.9]} 44... Kh7 {[%clk 0:00:08]} 45. Qe3 {[%clk 0:00:21.4]} 45... Kg8
{[%clk 0:00:06.9]} 46. Kg3 {[%clk 0:00:21.4]} 46... Kh7 {[%clk 0:00:07.2]} 47.
Kf3 {[%clk 0:00:21.6]} 47... Kg8 {[%clk 0:00:07.6]} 48. Qe8+ {[%clk 0:00:20.3]}
48... Kh7 {[%clk 0:00:08]} 49. Qe4+ {[%clk 0:00:20.9]} 49... Qxe4+ {[%clk
0:00:08.2]} 50. Kxe4 {[%clk 0:00:21.8]} 50... Kg6 {[%clk 0:00:08.4]} 51. Kd4
{[%clk 0:00:21.8]} 51... Kf5 {[%clk 0:00:07.6]} 52. g3 {[%clk 0:00:21.9]} 52...
h5 {[%clk 0:00:08]} 53. Kc5 {[%clk 0:00:21.8]} 53... h4 {[%clk 0:00:08.4]} 54.
gxh4 {[%clk 0:00:21.1]} 54... Kxf4 {[%clk 0:00:09.1]} 55. Kxc6 {[%clk
0:00:21.1]} 55... Kg3 {[%clk 0:00:09.8]} 56. b5 {[%clk 0:00:19.9]} 56... axb5
{[%clk 0:00:09.6]} 57. Kxb5 {[%clk 0:00:20.6]} 57... Kxh4 {[%clk 0:00:10.2]} 58.
a4 {[%clk 0:00:21.2]} 58... Kxh3 {[%clk 0:00:11.1]} 59. a5 {[%clk 0:00:21.9]}
59... g5 {[%clk 0:00:12]} 60. a6 {[%clk 0:00:22.7]} 60... g4 {[%clk 0:00:12.9]}
61. a7 {[%clk 0:00:23.4]} 61... g3 {[%clk 0:00:13.8]} 62. a8=Q {[%clk
0:00:24.1]} 62... g2 {[%clk 0:00:13.3]} 63. Qh8+ {[%clk 0:00:22.3]} 63... Kg3
{[%clk 0:00:13.6]} 64. Qg7+ {[%clk 0:00:22.7]} 64... Kh2 {[%clk 0:00:14.5]} 65.
Qh6+ {[%clk 0:00:22.5]} 65... Kg1 {[%clk 0:00:15.1]} 66. Kc4 {[%clk 0:00:21.9]}
66... Kf2 {[%clk 0:00:15.7]} 67. Qf4+ {[%clk 0:00:21.8]} 67... Ke1 {[%clk
0:00:16.2]} 68. Qg3+ {[%clk 0:00:20.5]} 68... Kf1 {[%clk 0:00:16.8]} 69. Qf3+
{[%clk 0:00:20.4]} 69... Kg1 {[%clk 0:00:17.7]} 70. Kd3 {[%clk 0:00:20.9]} 70...
Kh2 {[%clk 0:00:18.6]} 71. Qh5+ {[%clk 0:00:21]} 71... Kg1 {[%clk 0:00:19]} 72.
Ke3 {[%clk 0:00:19.4]} 72... Kf1 {[%clk 0:00:19.2]} 73. Qd1# {[%clk 0:00:18.9]}
1-0

[Event "Early-Titled-Tuesday-Blitz-April-16-2024"]
[Site "Chess.com"]
[Date "2024.04.16"]
[Round "9"]
[White "frederiksvane"]
[Black "FairChess_on_YouTube"]
[Result "0-1"]
[WhiteElo "3074"]
[BlackElo "3105"]
[TimeControl "180+1"]
[EndTime "9:50:01 PDT"]
[Termination "FairChess_on_YouTube won by resignation"]

1. e4 {[%clk 0:03:00.9]} 1... c5 {[%clk 0:02:59.1]} 2. Nf3 {[%clk 0:03:01.1]}
2... e6 {[%clk 0:02:59.2]} 3. d4 {[%clk 0:03:00.1]} 3... cxd4 {[%clk 0:03:00.1]}
4. Nxd4 {[%clk 0:03:00.8]} 4... Nc6 {[%clk 0:02:59.8]} 5. Nc3 {[%clk 0:03:01.2]}
5... a6 {[%clk 0:02:58.6]} 6. a3 {[%clk 0:02:53.8]} 6... Qc7 {[%clk 0:02:57.2]}
7. Be3 {[%clk 0:02:53.4]} 7... b5 {[%clk 0:02:47.4]} 8. Nxc6 {[%clk 0:02:43.4]}
8... Qxc6 {[%clk 0:02:48.3]} 9. Bd3 {[%clk 0:02:43.7]} 9... Bb7 {[%clk
0:02:47.7]} 10. Qd2 {[%clk 0:02:29.3]} 10... Rc8 {[%clk 0:02:39.6]} 11. O-O
{[%clk 0:02:23.1]} 11... Nf6 {[%clk 0:02:39.1]} 12. Rfd1 {[%clk 0:02:14.7]}
12... b4 {[%clk 0:02:19.3]} 13. axb4 {[%clk 0:02:12.2]} 13... Bxb4 {[%clk
0:02:20.2]} 14. Bd4 {[%clk 0:02:08.5]} 14... Bc5 {[%clk 0:02:01.5]} 15. Bxc5
{[%clk 0:01:55.2]} 15... Qxc5 {[%clk 0:02:01.9]} 16. Bxa6 {[%clk 0:01:56]} 16...
Bxa6 {[%clk 0:01:58.5]} 17. Rxa6 {[%clk 0:01:56.9]} 17... O-O {[%clk 0:01:58]}
18. Qd4 {[%clk 0:01:53]} 18... d5 {[%clk 0:01:30.3]} 19. exd5 {[%clk 0:01:43.7]}
19... exd5 {[%clk 0:01:31.2]} 20. h3 {[%clk 0:01:42.8]} 20... h6 {[%clk
0:01:27.5]} 21. Qxc5 {[%clk 0:01:25.8]} 21... Rxc5 {[%clk 0:01:27.2]} 22. Rb6
{[%clk 0:01:26.5]} 22... Re8 {[%clk 0:01:17.5]} 23. f3 {[%clk 0:01:22.5]} 23...
Rc4 {[%clk 0:01:15.3]} 24. Rd2 {[%clk 0:01:08.7]} 24... Re1+ {[%clk 0:01:14.9]}
25. Kf2 {[%clk 0:01:08.3]} 25... Rc1 {[%clk 0:01:15.8]} 26. Ke3 {[%clk
0:00:42.4]} 26... Kh7 {[%clk 0:00:31.5]} 27. Rd6 {[%clk 0:00:41.6]} 27... Re1+
{[%clk 0:00:21]} 28. Kd3 {[%clk 0:00:34]} 28... Rb4 {[%clk 0:00:18.6]} 29. b3
{[%clk 0:00:31.4]} 29... Re5 {[%clk 0:00:17.4]} 30. Re2 {[%clk 0:00:29.7]} 30...
Rg5 {[%clk 0:00:17.2]} 31. g4 {[%clk 0:00:29.6]} 31... Rf4 {[%clk 0:00:16]} 32.
Re3 {[%clk 0:00:24.6]} 32... Rg6 {[%clk 0:00:08.8]} 33. Ne2 {[%clk 0:00:15.5]}
33... Rb4 {[%clk 0:00:05.4]} 34. Kc3 {[%clk 0:00:12.4]} 34... Rb8 {[%clk
0:00:04.3]} 35. Kd3 {[%clk 0:00:11]} 35... Rc8 {[%clk 0:00:04.1]} 36. Nf4 {[%clk
0:00:10]} 36... Nxg4 {[%clk 0:00:04]} 37. Nxg6 {[%clk 0:00:08]} 37... Nxe3
{[%clk 0:00:04.4]} 38. Nf8+ {[%clk 0:00:05.1]} 38... Kg8 {[%clk 0:00:01.8]} 39.
Kxe3 {[%clk 0:00:05.8]} 39... Kxf8 {[%clk 0:00:02.2]} 40. Kd3 {[%clk 0:00:06.5]}
40... Rc5 {[%clk 0:00:02.1]} 41. b4 {[%clk 0:00:07.2]} 41... Rc4 {[%clk
0:00:02.5]} 42. c3 {[%clk 0:00:07.7]} 42... Rf4 {[%clk 0:00:02.1]} 43. Ke3
{[%clk 0:00:08]} 43... Rc4 {[%clk 0:00:02.2]} 44. Kd3 {[%clk 0:00:07.4]} 44...
Rf4 {[%clk 0:00:02.8]} 45. b5 {[%clk 0:00:07.2]} 45... Rxf3+ {[%clk 0:00:02.9]}
46. Kd4 {[%clk 0:00:07.7]} 46... Ke7 {[%clk 0:00:03.5]} 47. Rxd5 {[%clk
0:00:07.8]} 47... Rxh3 {[%clk 0:00:03.8]} 48. b6 {[%clk 0:00:08.1]} 48... Rh1
{[%clk 0:00:03.2]} 49. Rb5 {[%clk 0:00:08.2]} 49... Rd1+ {[%clk 0:00:03.8]} 50.
Kc5 {[%clk 0:00:08.5]} 50... Rd8 {[%clk 0:00:04.3]} 51. b7 {[%clk 0:00:09.1]}
51... Rb8 {[%clk 0:00:04.7]} 52. Kc6 {[%clk 0:00:09.8]} 52... g5 {[%clk
0:00:05.2]} 53. Kc7 {[%clk 0:00:10]} 53... Rg8 {[%clk 0:00:04.5]} 54. b8=Q
{[%clk 0:00:10]} 54... Rxb8 {[%clk 0:00:05]} 55. Rxb8 {[%clk 0:00:10.9]} 55...
f5 {[%clk 0:00:05.1]} 56. c4 {[%clk 0:00:11]} 56... f4 {[%clk 0:00:05.4]} 57. c5
{[%clk 0:00:11.6]} 57... f3 {[%clk 0:00:06]} 58. Rf8 {[%clk 0:00:12]} 58... Kxf8
{[%clk 0:00:05.8]} 59. c6 {[%clk 0:00:07.9]} 59... f2 {[%clk 0:00:06.7]} 60. Kd6
{[%clk 0:00:07.5]} 60... f1=Q {[%clk 0:00:07.6]} 61. c7 {[%clk 0:00:08]} 61...
Qf5 {[%clk 0:00:07.6]} 62. Kc6 {[%clk 0:00:07.2]} 62... Qc8 {[%clk 0:00:08.1]}
0-1

[Event "Early-Titled-Tuesday-Blitz-April-16-2024"]
[Site "Chess.com"]
[Date "2024.04.16"]
[Round "9"]
[White "Gumugama"]
[Black "ploxoi"]
[Result "1-0"]
[WhiteElo "2288"]
[BlackElo "2396"]
[TimeControl "180+1"]
[EndTime "9:50:05 PDT"]
[Termination "Gumugama won on time"]

1. e4 {[%clk 0:03:00.9]} 1... c5 {[%clk 0:02:59.6]} 2. Nf3 {[%clk 0:03:00.4]}
2... e6 {[%clk 0:02:59.8]} 3. d4 {[%clk 0:03:00.7]} 3... cxd4 {[%clk 0:03:00.2]}
4. Nxd4 {[%clk 0:03:01.4]} 4... Nc6 {[%clk 0:03:00.7]} 5. Nc3 {[%clk 0:03:00]}
5... Qc7 {[%clk 0:03:01]} 6. Be3 {[%clk 0:02:53.8]} 6... a6 {[%clk 0:03:00.7]}
7. Nxc6 {[%clk 0:02:51.3]} 7... bxc6 {[%clk 0:03:00.5]} 8. Bd3 {[%clk
0:02:42.5]} 8... d5 {[%clk 0:03:00.1]} 9. O-O {[%clk 0:02:35.6]} 9... Nf6 {[%clk
0:03:00.3]} 10. f4 {[%clk 0:02:29.9]} 10... Be7 {[%clk 0:02:56.2]} 11. e5 {[%clk
0:02:28.7]} 11... Nd7 {[%clk 0:02:56.6]} 12. Ne2 {[%clk 0:02:18.3]} 12... a5
{[%clk 0:02:49]} 13. Ng3 {[%clk 0:02:09]} 13... g6 {[%clk 0:02:47.1]} 14. Ne2
{[%clk 0:02:00.2]} 14... h5 {[%clk 0:02:42.6]} 15. c4 {[%clk 0:01:52.6]} 15...
Ba6 {[%clk 0:02:36.4]} 16. Rc1 {[%clk 0:01:50.3]} 16... Qb7 {[%clk 0:02:35.2]}
17. b3 {[%clk 0:01:47.9]} 17... O-O {[%clk 0:02:31.3]} 18. Qc2 {[%clk
0:01:44.2]} 18... Kg7 {[%clk 0:02:28.8]} 19. Bd4 {[%clk 0:01:19.9]} 19... Nc5
{[%clk 0:02:05.2]} 20. Bxc5 {[%clk 0:01:10.3]} 20... Bxc5+ {[%clk 0:02:04.3]}
21. Kh1 {[%clk 0:01:11.2]} 21... Rac8 {[%clk 0:01:58.3]} 22. Ng3 {[%clk
0:01:03.6]} 22... Rfd8 {[%clk 0:01:55.3]} 23. Qe2 {[%clk 0:01:00.5]} 23... h4
{[%clk 0:01:49.2]} 24. Nh5+ {[%clk 0:00:54]} 24... gxh5 {[%clk 0:01:48.4]} 25.
Qxh5 {[%clk 0:00:54.5]} 25... Rh8 {[%clk 0:01:46.6]} 26. Qg5+ {[%clk 0:00:53.7]}
26... Kf8 {[%clk 0:01:45.8]} 27. f5 {[%clk 0:00:54.3]} 27... Be7 {[%clk
0:00:33]} 28. f6 {[%clk 0:00:49.2]} 28... Rg8 {[%clk 0:00:33.4]} 29. Qh6+ {[%clk
0:00:43]} 29... Ke8 {[%clk 0:00:32.8]} 30. Qh7 {[%clk 0:00:37]} 30... Rf8 {[%clk
0:00:30]} 31. fxe7 {[%clk 0:00:33.3]} 31... Qxe7 {[%clk 0:00:30.1]} 32. Rf6
{[%clk 0:00:26.7]} 32... Rd8 {[%clk 0:00:25.2]} 33. Rcf1 {[%clk 0:00:18.4]}
33... Rd7 {[%clk 0:00:15.9]} 34. Bg6 {[%clk 0:00:18.3]} 34... Kd8 {[%clk
0:00:09.1]} 35. Rxf7 {[%clk 0:00:14.6]} 35... Rxf7 {[%clk 0:00:09.4]} 36. Rxf7
{[%clk 0:00:15.1]} 36... Qe8 {[%clk 0:00:08.8]} 37. Rxd7+ {[%clk 0:00:11.2]}
37... Qxd7 {[%clk 0:00:09.7]} 38. Qxh4+ {[%clk 0:00:10.4]} 38... Kc7 {[%clk
0:00:07.1]} 39. Qh7 {[%clk 0:00:10.8]} 39... Qxh7 {[%clk 0:00:06.8]} 40. Bxh7
{[%clk 0:00:10.7]} 40... dxc4 {[%clk 0:00:07.7]} 41. bxc4 {[%clk 0:00:10.3]}
41... Bxc4 {[%clk 0:00:08.6]} 42. Bb1 {[%clk 0:00:10.6]} 42... c5 {[%clk
0:00:08.1]} 43. h4 {[%clk 0:00:10.8]} 43... Kd8 {[%clk 0:00:06.9]} 44. h5 {[%clk
0:00:10.8]} 44... Ke7 {[%clk 0:00:07.3]} 45. Kh2 {[%clk 0:00:10.4]} 45... Kf8
{[%clk 0:00:07.5]} 46. Kg3 {[%clk 0:00:10.7]} 46... Kg7 {[%clk 0:00:07.9]} 47.
Kf4 {[%clk 0:00:11]} 47... a4 {[%clk 0:00:07.3]} 48. Kg5 {[%clk 0:00:10.9]}
48... a3 {[%clk 0:00:07.4]} 49. g4 {[%clk 0:00:10.9]} 49... Be2 {[%clk 0:00:07]}
50. h6+ {[%clk 0:00:10.8]} 50... Kh8 {[%clk 0:00:06]} 51. Kh4 {[%clk 0:00:08.2]}
51... c4 {[%clk 0:00:05.9]} 52. g5 {[%clk 0:00:08]} 52... c3 {[%clk 0:00:06.3]}
53. g6 {[%clk 0:00:06.9]} 53... Bc4 {[%clk 0:00:04.8]} 54. g7+ {[%clk
0:00:06.7]} 54... Kg8 {[%clk 0:00:04.7]} 55. Kg5 {[%clk 0:00:04.3]} 55... Bxa2
{[%clk 0:00:05.1]} 56. Bd3 {[%clk 0:00:02]} 56... c2 {[%clk 0:00:01.4]} 57. Kg6
{[%clk 0:00:02.1]} 1-0

[Event "Early-Titled-Tuesday-Blitz-April-16-2024"]
[Site "Chess.com"]
[Date "2024.04.16"]
[Round "9"]
[White "KorolDimitriy75"]
[Black "ATM622"]
[Result "0-1"]
[WhiteElo "2308"]
[BlackElo "2438"]
[TimeControl "180+1"]
[EndTime "9:50:06 PDT"]
[Termination "ATM622 won on time"]

1. d4 {[%clk 0:03:00.9]} 1... Nf6 {[%clk 0:02:57.1]} 2. c4 {[%clk 0:03:00.5]}
2... e6 {[%clk 0:02:57.7]} 3. Nc3 {[%clk 0:03:00.8]} 3... d5 {[%clk 0:02:57.9]}
4. Bg5 {[%clk 0:03:00.2]} 4... Be7 {[%clk 0:02:57.4]} 5. cxd5 {[%clk 0:03:00.3]}
5... exd5 {[%clk 0:02:56.8]} 6. e3 {[%clk 0:03:00.3]} 6... c6 {[%clk 0:02:56.3]}
7. Bd3 {[%clk 0:03:00.5]} 7... O-O {[%clk 0:02:54.9]} 8. Qc2 {[%clk 0:03:00.7]}
8... h6 {[%clk 0:02:53]} 9. Bh4 {[%clk 0:03:01.1]} 9... Re8 {[%clk 0:02:47.8]}
10. Nge2 {[%clk 0:03:00.8]} 10... Nbd7 {[%clk 0:02:43.6]} 11. f3 {[%clk
0:03:00.7]} 11... Nf8 {[%clk 0:02:40.7]} 12. O-O {[%clk 0:03:00.3]} 12... Ne6
{[%clk 0:01:53.5]} 13. Rad1 {[%clk 0:02:57.9]} 13... b6 {[%clk 0:01:51.6]} 14.
Bf2 {[%clk 0:02:30.4]} 14... Bb7 {[%clk 0:01:44.7]} 15. h3 {[%clk 0:02:24.6]}
15... Rc8 {[%clk 0:01:29]} 16. e4 {[%clk 0:02:22.8]} 16... dxe4 {[%clk
0:01:27.3]} 17. fxe4 {[%clk 0:02:23.7]} 17... c5 {[%clk 0:01:14.8]} 18. dxc5
{[%clk 0:01:47.7]} 18... Qc7 {[%clk 0:01:04]} 19. cxb6 {[%clk 0:01:24.8]} 19...
axb6 {[%clk 0:01:01.2]} 20. Bb5 {[%clk 0:01:05.1]} 20... Red8 {[%clk 0:00:53.2]}
21. Qb1 {[%clk 0:00:51.8]} 21... Nc5 {[%clk 0:00:50]} 22. Ng3 {[%clk 0:00:47.6]}
22... Bd6 {[%clk 0:00:41.9]} 23. Nf5 {[%clk 0:00:38.4]} 23... Bh2+ {[%clk
0:00:39.2]} 24. Kh1 {[%clk 0:00:38]} 24... Ncxe4 {[%clk 0:00:34.9]} 25. Bd4
{[%clk 0:00:20.7]} 25... Be5 {[%clk 0:00:29.4]} 26. Bxe5 {[%clk 0:00:15.9]}
26... Qxe5 {[%clk 0:00:28.6]} 27. Rde1 {[%clk 0:00:15.3]} 27... Nh5 {[%clk
0:00:20.9]} 28. Nxe4 {[%clk 0:00:13.8]} 28... Bxe4 {[%clk 0:00:19.3]} 29. Qxe4
{[%clk 0:00:13]} 29... Qxb5 {[%clk 0:00:18.4]} 30. Ne7+ {[%clk 0:00:12.8]} 30...
Kh8 {[%clk 0:00:18.1]} 31. Nxc8 {[%clk 0:00:12.5]} 31... Ng3+ {[%clk 0:00:18.1]}
32. Kh2 {[%clk 0:00:10.8]} 32... Nxe4 {[%clk 0:00:18.4]} 33. Rxe4 {[%clk
0:00:10.6]} 33... Rxc8 {[%clk 0:00:18.3]} 34. Rxf7 {[%clk 0:00:09.5]} 34... Qd5
{[%clk 0:00:18.4]} 35. Ree7 {[%clk 0:00:09.2]} 35... Qd4 {[%clk 0:00:18.5]} 36.
Rd7 {[%clk 0:00:07.6]} 36... Qxb2 {[%clk 0:00:18.3]} 37. h4 {[%clk 0:00:07.1]}
37... Rg8 {[%clk 0:00:17.3]} 38. Kh3 {[%clk 0:00:06.5]} 38... Qxa2 {[%clk
0:00:17.3]} 39. g3 {[%clk 0:00:06.7]} 39... Qe6+ {[%clk 0:00:17]} 40. Kg2 {[%clk
0:00:06.3]} 40... b5 {[%clk 0:00:17.2]} 41. Rfe7 {[%clk 0:00:06.5]} 41... Qc6+
{[%clk 0:00:16.3]} 42. Kh3 {[%clk 0:00:06.5]} 42... b4 {[%clk 0:00:16.5]} 43.
Rc7 {[%clk 0:00:06.2]} 43... Qd5 {[%clk 0:00:16.4]} 44. Rcd7 {[%clk 0:00:05.7]}
44... Qb3 {[%clk 0:00:16.4]} 45. Rb7 {[%clk 0:00:05.2]} 45... Qc3 {[%clk
0:00:16.2]} 46. Kg4 {[%clk 0:00:05.1]} 46... b3 {[%clk 0:00:15]} 47. Rec7 {[%clk
0:00:05.2]} 47... Qd4+ {[%clk 0:00:15]} 48. Kf5 {[%clk 0:00:04.8]} 48... b2
{[%clk 0:00:15.3]} 49. g4 {[%clk 0:00:03.8]} 49... Qd5+ {[%clk 0:00:15.1]} 50.
Kg6 {[%clk 0:00:03.2]} 50... Qe6+ {[%clk 0:00:15.1]} 51. Kh5 {[%clk 0:00:02.9]}
51... Qe5+ {[%clk 0:00:15]} 52. g5 {[%clk 0:00:03.3]} 52... Qe2+ {[%clk
0:00:15.1]} 53. Kg6 {[%clk 0:00:03.3]} 53... Qd3+ {[%clk 0:00:15.3]} 54. Kh5
{[%clk 0:00:03.3]} 54... hxg5 {[%clk 0:00:13.7]} 55. hxg5 {[%clk 0:00:03.1]}
55... Qd4 {[%clk 0:00:08.9]} 56. g6 {[%clk 0:00:02.3]} 56... Qe5+ {[%clk
0:00:08.5]} 57. Kh4 {[%clk 0:00:02.2]} 57... Qf6+ {[%clk 0:00:08.4]} 58. Kh5
{[%clk 0:00:02.1]} 58... Qf5+ {[%clk 0:00:08.7]} 59. Kh4 {[%clk 0:00:02.4]}
59... Qxg6 {[%clk 0:00:08.9]} 60. Rxb2 {[%clk 0:00:01.9]} 60... Qf6+ {[%clk
0:00:09.2]} 61. Kh5 {[%clk 0:00:01.5]} 61... Qxb2 {[%clk 0:00:09.1]} 0-1

[Event "Early-Titled-Tuesday-Blitz-April-16-2024"]
[Site "Chess.com"]
[Date "2024.04.16"]
[Round "9"]
[White "amanjazu"]
[Black "dontcatchmeifyoucant"]
[Result "1-0"]
[WhiteElo "2529"]
[BlackElo "2222"]
[TimeControl "180+1"]
[EndTime "9:50:07 PDT"]
[Termination "amanjazu won by resignation"]

1. g3 {[%clk 0:03:00.9]} 1... Nf6 {[%clk 0:02:56]} 2. Bg2 {[%clk 0:03:01]} 2...
d5 {[%clk 0:02:55.2]} 3. f4 {[%clk 0:03:01.4]} 3... e6 {[%clk 0:02:53.4]} 4. Nf3
{[%clk 0:03:01.7]} 4... c5 {[%clk 0:02:53.4]} 5. O-O {[%clk 0:03:02.6]} 5... Nc6
{[%clk 0:02:53.9]} 6. d3 {[%clk 0:03:03]} 6... Be7 {[%clk 0:02:27.9]} 7. Nc3
{[%clk 0:03:02.6]} 7... O-O {[%clk 0:02:10.4]} 8. e4 {[%clk 0:02:56.7]} 8...
dxe4 {[%clk 0:02:00.7]} 9. dxe4 {[%clk 0:02:51.8]} 9... Qc7 {[%clk 0:01:48.9]}
10. e5 {[%clk 0:02:34.6]} 10... Rd8 {[%clk 0:01:47.1]} 11. Qe2 {[%clk
0:02:34.1]} 11... Nd5 {[%clk 0:01:46.2]} 12. Ne4 {[%clk 0:02:34.4]} 12... Nd4
{[%clk 0:01:40.5]} 13. Qf2 {[%clk 0:02:33]} 13... b6 {[%clk 0:01:36]} 14. c3
{[%clk 0:02:24.9]} 14... Nxf3+ {[%clk 0:01:35.5]} 15. Bxf3 {[%clk 0:02:21.2]}
15... Ba6 {[%clk 0:01:29.5]} 16. Rd1 {[%clk 0:02:20.7]} 16... Bb7 {[%clk
0:01:29.8]} 17. Bd2 {[%clk 0:02:16.9]} 17... c4 {[%clk 0:01:22]} 18. Qe2 {[%clk
0:02:08.8]} 18... f5 {[%clk 0:01:10.4]} 19. exf6 {[%clk 0:02:02.7]} 19... gxf6
{[%clk 0:01:11.1]} 20. Be1 {[%clk 0:01:56.8]} 20... Re8 {[%clk 0:01:04.5]} 21.
Bf2 {[%clk 0:01:30]} 21... Rad8 {[%clk 0:01:04.2]} 22. Nd2 {[%clk 0:01:23]}
22... Bc5 {[%clk 0:00:53]} 23. Ne4 {[%clk 0:00:59.3]} 23... Bxf2+ {[%clk
0:00:49.6]} 24. Qxf2 {[%clk 0:01:00.2]} 24... f5 {[%clk 0:00:41.6]} 25. Ng5
{[%clk 0:00:41.6]} 25... h6 {[%clk 0:00:41.3]} 26. Nh3 {[%clk 0:00:41.8]} 26...
Nf6 {[%clk 0:00:39]} 27. Rxd8 {[%clk 0:00:31.7]} 27... Rxd8 {[%clk 0:00:37.9]}
28. Rd1 {[%clk 0:00:26.3]} 28... Rxd1+ {[%clk 0:00:36.6]} 29. Bxd1 {[%clk
0:00:26]} 29... Qc6 {[%clk 0:00:36.5]} 30. Kf1 {[%clk 0:00:21.3]} 30... Qe4
{[%clk 0:00:20.1]} 31. Ng1 {[%clk 0:00:18.5]} 31... Ng4 {[%clk 0:00:15.1]} 32.
Qe2 {[%clk 0:00:16]} 32... Ne3+ {[%clk 0:00:06.2]} 33. Ke1 {[%clk 0:00:14.2]}
33... Nxd1 {[%clk 0:00:04.5]} 34. Qxe4 {[%clk 0:00:13.9]} 34... Bxe4 {[%clk
0:00:05.1]} 35. Kxd1 {[%clk 0:00:13.6]} 35... Kf7 {[%clk 0:00:03.9]} 36. Kd2
{[%clk 0:00:14]} 36... Kf6 {[%clk 0:00:04]} 37. Ke3 {[%clk 0:00:14.9]} 37... e5
{[%clk 0:00:04]} 38. Ne2 {[%clk 0:00:13.7]} 38... exf4+ {[%clk 0:00:04]} 39.
Kxf4 {[%clk 0:00:13.4]} 39... Bd3 {[%clk 0:00:03.9]} 40. Nd4 {[%clk 0:00:13.6]}
40... Bb1 {[%clk 0:00:03.5]} 41. a3 {[%clk 0:00:13.8]} 41... Bd3 {[%clk
0:00:04]} 42. h4 {[%clk 0:00:14.7]} 42... h5 {[%clk 0:00:03.5]} 43. Nb5 {[%clk
0:00:14.6]} 43... a6 {[%clk 0:00:03.2]} 44. Nc7 {[%clk 0:00:15]} 44... a5 {[%clk
0:00:02.7]} 45. Nd5+ {[%clk 0:00:15.3]} 45... Ke6 {[%clk 0:00:01.9]} 46. Nxb6
{[%clk 0:00:15.4]} 46... Kf6 {[%clk 0:00:02.1]} 47. Nd5+ {[%clk 0:00:15.2]}
47... Ke6 {[%clk 0:00:02.7]} 48. Ne3 {[%clk 0:00:15]} 48... Kf6 {[%clk
0:00:03.3]} 49. Nd5+ {[%clk 0:00:12.6]} 49... Ke6 {[%clk 0:00:03]} 50. Nc7+
{[%clk 0:00:13]} 50... Kf6 {[%clk 0:00:03.5]} 51. Nb5 {[%clk 0:00:11.3]} 51...
Bc2 {[%clk 0:00:02.9]} 52. Nd4 {[%clk 0:00:10.3]} 52... Bd3 {[%clk 0:00:03.4]}
53. Nc6 {[%clk 0:00:10.7]} 53... a4 {[%clk 0:00:03.2]} 54. Na7 {[%clk
0:00:10.3]} 54... Bc2 {[%clk 0:00:03.4]} 55. Nc8 {[%clk 0:00:10.4]} 55... Bd3
{[%clk 0:00:03.8]} 56. Nb6 {[%clk 0:00:10.7]} 56... Bc2 {[%clk 0:00:03.4]} 57.
Nxc4 {[%clk 0:00:10.8]} 57... Bb3 {[%clk 0:00:04.3]} 58. Ne3 {[%clk 0:00:11.1]}
1-0